fUSD/lending_fUSD_20240315
["ID","MTS","AMOUNT","RATE_DAILY","PERIOD"]
[319080437,1710543032772,-232.49897035,0.00014349,2]
[319080438,1710543032781,-154.2,0.00014379,2]
[319080439,1710543032791,-397.1259764,0.00014419,2]
[319080440,1710543032801,-154.2,0.00014434,2]
[319080441,1710543032810,-232.49897035,0.00014457,2]
[319080442,1710543032819,-500.0,0.00014505,2]
[319080443,1710543032829,-5608.0351,0.00014505,2]
[319080444,1710543032838,-232.49897035,0.00014565,2]
[319080445,1710543032847,-232.49897035,0.00014673,2]
[319080446,1710543032857,-232.49897035,0.00014781,2]
[319080447,1710543032867,-487.880549,0.00014795,2]
[319080448,1710543032879,-232.49897035,0.00014889,2]
[319080449,1710543032888,-150.0,0.00014913,2]
[319080450,1710543032897,-976.0,0.00014932,2]
[319080451,1710543032907,-800.0,0.00014959,2]
[319080452,1710543032916,-232.49897035,0.00014997,2]
[319080453,1710543032926,-3937.78926944,0.00015,2]
[319080454,1710543032935,-1550.0,0.00015,4]
[319080455,1710543032945,-407.33,0.00015046,2]
[319080456,1710543032955,-2943.0,0.00015068,2]
[319080457,1710543032964,-611.572,0.0001509,2]
[319080458,1710543032973,-93066.0343,0.0001509,2]
[319080459,1710543032983,-1809.2112,0.000151,2]
[319080460,1710543032993,-1000.0,0.000151,2]
[319080461,1710543033003,-151.32363812,0.000151,2]
[319080462,1710543033013,-866.84848773,0.000151,2]
[319080463,1710543033022,-232.49897035,0.00015105,2]
[319080464,1710543033032,-150.0,0.00015113,2]
[319080465,1710543033042,-151.32363812,0.00015114,2]
[319080466,1710543033052,-866.84848773,0.0001512,2]
[319080467,1710543033061,-151.32363812,0.00015127,2]
[319080468,1710543033071,-321.09,0.00015128,2]
[319080469,1710543033080,-866.84848773,0.00015141,2]
[319080470,1710543033090,-151.32363812,0.00015141,2]
[319080471,1710543033099,-660.581514,0.00015154,2]
[319080472,1710543033109,-151.32363812,0.00015155,2]
[319080473,1710543033119,-866.84848773,0.00015161,2]
[319080474,1710543033129,-151.32363812,0.00015168,2]
[319080475,1710543033139,-186.03,0.0001518,3]
[319080476,1710543033149,-558.11,0.0001518,3]
[319080477,1710543033158,-866.84848773,0.00015181,2]
[319080478,1710543033168,-151.32363812,0.00015182,2]
[319080479,1710543033178,-200.0,0.00015184,2]
[319080480,1710543033187,-161.08100633,0.00015188,2]
[319080481,1710543033197,-140660.2685875,0.0001519,2]
[319080482,1710543033207,-151.32363812,0.00015195,2]
[319080483,1710543033217,-331.26655304,0.00015199,5]
[319080484,1710543033227,-331.26655304,0.00015199,5]
[319080485,1710543033236,-331.26655304,0.00015199,5]
[319080486,1710543033246,-331.26655304,0.00015199,5]
[319080487,1710543033256,-331.26655304,0.00015199,5]
[319080488,1710543033265,-312.27043877,0.00015199,5]
[319080489,1710543033274,-312.27043878,0.00015199,5]
[319080490,1710543033284,-312.27043878,0.00015199,5]
[319080491,1710543033293,-312.27043878,0.00015199,5]
[319080492,1710543033303,-391.48625811,0.00015199,5]
[319080493,1710543033313,-3000.0,0.00015199,2]
[319080494,1710543033322,-130223.41317529,0.000152,5]
[319080495,1710543033349,-68898.80156424,0.000152,5]
[319080496,1710543033363,-8845.09151064,0.000152,5]
[319080505,1710543038327,-450.0,0.00012529,2]
[319080506,1710543038507,-79.04209343,0.00012529,2]
[319080507,1710543038517,-235.93344769,0.00012529,2]
[319080508,1710543038526,-222.51076452,0.00013242,2]
[319080509,1710543038536,-174.80833128,0.00014269,2]
[319080510,1710543038547,-580.79166872,0.00014269,2]
[319080511,1710543038556,-420.72271198,0.000152,5]
[319080512,1710543038568,-296.89423221,0.000152,5]
[319080513,1710543038628,-2618.25814342,0.000152,5]
[319080529,1710543040146,-879.38105654,0.000152,5]
[319080530,1710543040158,-839.45124508,0.000152,5]
[319080531,1710543040169,-423.51303806,0.000152,5]
[319080532,1710543040323,-434045.13452072,0.000152,5]
[319080533,1710543040332,-9485.16051827,0.000152,3]
[319080534,1710543040381,-2176.04788068,0.000152,3]
[319080535,1710543040390,-284.54818899,0.000152,2]
[319080536,1710543040399,-150.0,0.000152,2]
[319080537,1710543040408,-866.84848773,0.00015201,2]
[319080538,1710543040417,-2560.0,0.00015205,2]
[319080539,1710543040427,-959.0,0.00015205,2]
[319080540,1710543040436,-1241.20828399,0.00015205,2]
[319080596,1710543046130,-300.93171025,0.00014269,2]
[319080601,1710543354212,509.06,0.00011252,2]
[319080602,1710543649937,250.0,0.00012272,2]
[319080603,1710543726752,167.54,0.00012265,2]
[319080604,1710543753251,200.0,0.00012277,2]
[319080605,1710543754770,503.85,0.00012277,2]
[319080606,1710543791367,375.23,0.00012395,2]
[319080607,1710543791561,375.23,0.00012429,2]
[319080608,1710543791785,375.23,0.00012463,2]
[319080609,1710543791989,375.23,0.00012497,2]
[319080610,1710543835671,1648.06,0.00011946,2]
[319080611,1710543867133,500.0,0.00011965,2]
[319080612,1710543868841,512.230916,0.00012458,2]
[319080613,1710543883088,157.93347945,0.00012419,2]
[319080614,1710543887651,232.76,0.00011968,2]
[319080615,1710543908470,2402.7,0.0001192,2]
[319080616,1710543921882,440.47818281,0.000125,2]
[319080617,1710543922502,14982.17,0.00011916,2]
[319080618,1710543925823,972.05065311,0.000125,2]
[319080619,1710543935638,541.95376435,0.000125,2]
[319080620,1710543935835,500.0,0.000125,2]
[319080621,1710543938664,2490.17599644,0.000125,2]
[319080622,1710543955423,204.4040776,0.000125,2]
[319080623,1710543962619,235.93344769,0.000125,2]
[319080624,1710543963835,150.0,0.000125,2]
[319080625,1710543970245,23174.11530445,0.000125,2]
[319080626,1710543979106,483.6,0.00010018,2]
[319080627,1710543979503,483.6,0.00012281,2]
[319080628,1710543984055,3984.87,0.00011935,2]
[319080629,1710543986254,2118.0,0.000125,2]
[319080630,1710543986720,228.53,0.0002,30]
[319080631,1710543988217,231.87,0.00011953,2]
[319080632,1710544011124,2490.17599644,0.000125,2]
[319080633,1710544018270,500.0,0.000125,2]
[319080634,1710544020965,2000.0,0.00011953,2]
[319080635,1710544025163,170.08397805,0.000125,2]
[319080636,1710544050332,4356.78,0.00012012,2]
[319080638,1710544060958,6729.68,0.00012036,2]
[319080639,1710544105341,235.93344769,0.000125,2]
[319080640,1710544109776,170.08397805,0.000125,2]
[319080641,1710544118135,43983.37,0.00012055,2]
[319080642,1710544136848,604.48,0.00012407,2]
[319080643,1710544175817,235.93344769,0.000125,2]
[319080644,1710544179191,250.0,0.00012391,2]
[319080645,1710544184430,192.66,0.00012391,2]
[319080646,1710544201888,500.0,0.000125,2]
[319080673,1710544232262,-3357.28127037,0.00012501,2]
[319080674,1710544232271,-302.7676463,0.00012503,2]
[319080675,1710544232281,-150.0,0.00012514,2]
[319080676,1710544232290,-285.67755921,0.00012515,2]
[319080677,1710544232299,-235.93344769,0.00012515,2]
[319080678,1710544232308,-378.71400881,0.00012515,2]
[319080679,1710544232319,-121.28599119,0.00012515,2]
[319080680,1710544232328,-439.52506834,0.00012515,2]
[319080681,1710544232338,-580.83978395,0.00012515,2]
[319080682,1710544232346,-207.87186284,0.00012515,2]
[319080683,1710544232356,-204.27235526,0.00012515,2]
[319080684,1710544232365,-875.39280357,0.00012515,2]
[319080685,1710544232376,-1806.99127667,0.00012515,2]
[319080686,1710544232388,-76.61575906,0.00012515,2]
[319080687,1710544232398,-710.07971817,0.00012516,2]
[319080688,1710544232407,-382.23745593,0.00012516,2]
[319080689,1710544232419,-1251.28226897,0.00012516,2]
[319080690,1710544232430,-389.90240998,0.00012516,2]
[319080691,1710544232439,-511.0598596,0.00012517,2]
[319080692,1710544232455,-888.20922659,0.00012517,2]
[319080693,1710544232543,-2501.07920734,0.00012517,2]
[319080696,1710544232581,-1075.43,0.00012517,2]
[319080698,1710544232592,-415.81850144,0.00012517,2]
[319080702,1710544232624,-6480.97604691,0.00012517,2]
[319080704,1710544232635,-1359.22370126,0.00012517,2]
[319080706,1710544232644,-6980.98454231,0.00012517,2]
[319080708,1710544232655,-1334.8386,0.00012517,2]
[319080729,1710544238361,-52240.70986947,0.00012517,2]
[319080731,1710544238371,-375.23,0.00012531,2]
[319080733,1710544238382,-375.23,0.00012565,2]
[319080735,1710544238391,-499.99,0.00012565,2]
[319080737,1710544238399,-157.93347939,0.00012574,2]
[319080739,1710544238409,-455.3,0.00012574,2]
[319080741,1710544238418,-375.23,0.00012599,2]
[319080742,1710544238428,-681.82,0.00012599,2]
[319080743,1710544238438,-375.23,0.00012633,2]
[319080744,1710544238447,-375.23,0.00012667,2]
[319080745,1710544238456,-375.23,0.00012701,2]
[319080746,1710544238466,-157.93347939,0.00012729,2]
[319080747,1710544238476,-375.23,0.00012735,2]
[319080748,1710544238486,-375.23,0.00012769,2]
[319080749,1710544238495,-300.0,0.00012797,2]
[319080750,1710544238505,-375.23,0.00012803,2]
[319080751,1710544238515,-375.23,0.00012837,2]
[319080752,1710544238525,-192.53621188,0.00012842,2]
[319080753,1710544238537,-678.98981162,0.00012843,2]
[319080754,1710544238547,-375.23,0.00012871,2]
[319080755,1710544238556,-157.93347939,0.00012884,2]
[319080756,1710544238567,-254.85,0.00012891,2]
[319080757,1710544238576,-150.99,0.00012891,2]
[319080758,1710544238586,-167.0395464,0.00012901,2]
[319080759,1710544238596,-375.23,0.00012905,2]
[319080760,1710544238606,-150.0,0.00012916,2]
[319080761,1710544238615,-375.23,0.00012939,2]
[319080762,1710544238635,-300.0,0.00012956,2]
[319080763,1710544238650,-395.52,0.00012957,2]
[319080764,1710544238659,-375.23,0.00012973,2]
[319080765,1710544238668,-375.23,0.00013007,2]
[319080766,1710544238678,-150.0,0.00013031,2]
[319080767,1710544238688,-6442.79446134,0.00013036,2]
[319080768,1710544238755,-3557.19553866,0.00013036,2]
[319080769,1710544238764,-157.93347939,0.00013039,2]
[319080770,1710544238774,-375.23,0.00013041,2]
[319080771,1710544238784,-157.93347939,0.00013194,2]
[319080772,1710544238793,-1500.0,0.00013208,2]
[319080773,1710544238803,-1500.0,0.00013305,2]
[319080774,1710544238812,-407.34,0.00013316,2]
[319080775,1710544238821,-103197.1946949,0.00013334,2]
[319080776,1710544238831,-300.0,0.00013335,2]
[319080777,1710544238840,-157.93347939,0.00013349,2]
[319080778,1710544238849,-150.0,0.0001335,2]
[319080779,1710544238858,-300.0,0.00013415,2]
[319080780,1710544238867,-1500.0,0.0001343,2]
[319080781,1710544238878,-1500.0,0.00013436,2]
[319080782,1710544238887,-150.0,0.0001347,2]
[319080783,1710544238896,-157.93347939,0.00013504,2]
[319080785,1710544238906,-16788.9954,0.00013597,2]
[319080786,1710544238915,-300.0,0.0001365,2]
[319080787,1710544238924,-157.93347939,0.0001366,2]
[319080788,1710544238933,-351.40617785,0.00013699,2]
[319080789,1710544238942,-155.78,0.00013699,2]
[319080790,1710544238951,-500.0,0.00013699,2]
[319080791,1710544238960,-9602.69,0.00013699,2]
[319080792,1710544238969,-2666.49,0.00013699,2]
[319080793,1710544238978,-250.0,0.00013699,2]
[319080794,1710544238987,-993.27,0.00013699,2]
[319080795,1710544239000,-200.0,0.00013699,2]
[319080796,1710544239009,-155.0,0.00013699,2]
[319080797,1710544239019,-1500.0,0.00013699,2]
[319080798,1710544239028,-150.0,0.00013705,2]
[319080799,1710544239037,-195.14620972,0.00013721,2]
[319080800,1710544239046,-210.0,0.00013766,2]
[319080801,1710544239055,-1500.0,0.0001379,2]
[319080802,1710544239064,-157.93347939,0.00013815,2]
[319080803,1710544239073,-1500.0,0.00013845,2]
[319080804,1710544239083,-150.0,0.00013856,2]
[319080805,1710544239092,-192.66,0.0001394,2]
[319080806,1710544239109,-604.48,0.00013958,2]
[319080807,1710544239123,-157.93347939,0.0001397,2]
[319080808,1710544239134,-439.092494,0.00013973,2]
[319080809,1710544239144,-300.0,0.00014057,2]
[319080810,1710544239153,-157.93347939,0.00014125,2]
[319080811,1710544239162,-1500.0,0.00014133,2]
[319080812,1710544239172,-150.0,0.00014136,2]
[319080813,1710544239181,-150.0,0.00014175,2]
[319080814,1710544239190,-155.78,0.00014178,2]
[319080815,1710544239200,-958.0,0.00014247,2]
[319080816,1710544239210,-150.0,0.00014253,2]
[319080817,1710544239219,-157.93347939,0.0001428,2]
[319080818,1710544239229,-150.0,0.00014301,2]
[319080819,1710544239240,-500.0,0.00014342,2]
[319080820,1710544239250,-610.22,0.00014342,2]
[319080821,1710544239261,-1500.0,0.00014405,2]
[319080822,1710544239271,-127935.0,0.00014409,2]
[319080823,1710544239280,-449.14958006,0.00014419,2]
[319080824,1710544239290,-157.93347939,0.00014435,2]
[319080825,1710544239300,-125074.14231478,0.000145,2]
[319080826,1710544239309,-483.6,0.00014545,2]
[319080827,1710544239320,-165.848197,0.00014565,2]
[319080828,1710544239330,-220.730155,0.00014565,2]
[319080829,1710544239340,-180.703076,0.00014565,2]
[319080830,1710544239350,-152.664976,0.00014565,2]
[319080831,1710544239360,-220.730155,0.00014565,2]
[319080832,1710544239369,-180.703076,0.00014565,2]
[319080833,1710544239380,-395.52,0.00014577,2]
[319080834,1710544239390,-157.93347939,0.0001459,2]
[319080835,1710544239400,-1000.0,0.0001465,2]
[319080836,1710544239409,-155.78,0.00014658,2]
[319080837,1710544239419,-157.93347939,0.00014745,2]
[319080838,1710544239429,-165.848197,0.00014747,2]
[319080839,1710544239439,-391.48625811,0.00014749,5]
[319080840,1710544239448,-391.48625811,0.00014749,5]
[319080841,1710544239458,-4356.78,0.00014752,2]
[319080842,1710544239468,-439.092494,0.00014795,2]
[319080843,1710544239478,-152.664976,0.00014808,2]
[319080844,1710544239487,-300.0,0.00014832,2]
[319080845,1710544239497,-150.0,0.00014852,2]
[319080846,1710544239506,-1500.0,0.00014884,2]
[319080847,1710544239516,-150.0,0.00014889,2]
[319080848,1710544239526,-154.71873903,0.000149,2]
[319080849,1710544239536,-157.93347939,0.000149,2]
[319080850,1710544239546,-1403.35350734,0.000149,2]
[319080851,1710544239557,-150.0,0.00014921,2]
[319080852,1710544239567,-165.848197,0.0001493,2]
[319080853,1710544239577,-958.0,0.00014932,2]
[319080854,1710544239586,-154.71873898,0.00014933,2]
[319080855,1710544239596,-357.0,0.00014953,2]
[319080856,1710544239606,-800.0,0.00014953,2]
[319080857,1710544239615,-1136.0,0.00014953,2]
[319080858,1710544239625,-3000.0,0.00014953,2]
[319080859,1710544239636,-1458.0,0.00014953,2]
[319080860,1710544239646,-2418.0,0.00014953,2]
[319080861,1710544239656,-1622.0,0.00014953,2]
[319080862,1710544239666,-213.0,0.00014953,2]
[319080863,1710544239676,-154.71873898,0.00014967,2]
[319080864,1710544239685,-2419.0,0.00014976,2]
[319080865,1710544239695,-4760.0,0.00014976,2]
[319080866,1710544239705,-42865.0,0.00014976,2]
[319080867,1710544240078,-5666.0,0.00014976,2]
[319080868,1710544240090,-1044.0,0.00014976,2]
[319080869,1710544240101,-407.34,0.0001498,2]
[319080870,1710544240110,-185.45838698,0.0001499,2]
[319080871,1710544240120,-500.0,0.00015,2]
[319080872,1710544240130,-987443.15006749,0.00015,2]
[319080873,1710544240143,-1460.25493119,0.00015,2]
[319080874,1710544240162,-2094.97205376,0.00015,2]
[319080875,1710544240199,-15663.15912443,0.00015,2]
[319080876,1710544240211,-1377.2,0.00015,2]
[319080879,1710544240945,-68927.04380141,0.00015,2]
[319080880,1710544241003,-390.2,0.00015,2]
[319080881,1710544241119,-337.374,0.00015,2]
[319080882,1710544241269,-2102.8332874,0.00015,2]
[319080883,1710544241281,-1147.97273782,0.00015,2]
[319080893,1710544243274,-667.5605245,0.00015,2]
[319080895,1710544243291,-6410.00779331,0.00015,2]
[319080901,1710544243393,-724.3212786,0.00015,2]
[319080911,1710544243486,-6329.24012173,0.00015,2]
[319080914,1710544243499,-1465.8537333,0.00015,2]
[319080915,1710544243552,-776.3400002,0.00015,2]
[319080916,1710544243564,-627.9082026,0.00015,2]
[319080917,1710544243575,-7432.0,0.00015,2]
[319080934,1710544247837,-235.93344769,0.00014999,2]
[319080935,1710544247847,-1971.95055231,0.00014999,2]
[319080936,1710544257498,2001.5123,0.00012418,2]
[319080941,1710544531637,429.97,0.00012119,2]
[319080942,1710545086079,408.47,0.00011663,2]
[319080958,1710545431623,-235.93344769,0.0001329,2]
[319080959,1710545431634,-500.0,0.00013291,2]
[319080960,1710545431647,-498.77693836,0.00013291,2]
[319080961,1710545432138,-566.16112301,0.00013292,2]
[319080962,1710545432172,-1649.50337699,0.00013292,2]
[319080963,1710545432200,-1550.38489226,0.00013393,2]
[319080964,1710545432246,-2695.42445887,0.00013393,2]
[319080965,1710545432260,-399.12747985,0.00013393,2]
[319080966,1710545432272,-347.255,0.00013393,2]
[319080967,1710545432300,-5545.15753565,0.00013393,2]
[319080968,1710545432314,-1339.44,0.00013394,2]
[319080969,1710545432323,-407.55681435,0.00013445,2]
[319080978,1710545437618,-160.91391326,0.00013445,2]
[319080979,1710545437627,-486.0,0.00013447,2]
[319080980,1710545437637,-170.08397805,0.00013449,2]
[319080981,1710545437647,-170.08397805,0.00013449,2]
[319080982,1710545437657,-170.08397805,0.00013449,2]
[319080983,1710545437667,-170.08397805,0.00013449,2]
[319080984,1710545437676,-170.08397805,0.00013449,2]
[319080985,1710545437686,-362.69,0.00013451,2]
[319080986,1710545437696,-1451.58,0.00013528,2]
[319080987,1710545437705,-250.0,0.00013557,2]
[319080988,1710545437716,-2000.0,0.00013567,2]
[319080989,1710545437725,-166.48937539,0.00013596,2]
[319080990,1710545437735,-244.4,0.00013624,2]
[319080991,1710545437745,-499.99,0.00013624,2]
[319080992,1710545437755,-250.0,0.00013699,2]
[319080993,1710545437765,-496.63,0.00013699,2]
[319080994,1710545437775,-856.0,0.00013699,2]
[319080995,1710545437785,-255.46,0.00013754,2]
[319080996,1710545437794,-637.31,0.00013803,2]
[319080997,1710545437804,-408.47,0.00013927,2]
[319080998,1710545437814,-240.0,0.00013935,2]
[319080999,1710545437823,-351.273995,0.00014247,2]
[319081000,1710545437832,-300.0,0.00014278,2]
[319081001,1710545437844,-856.0,0.00014384,2]
[319081002,1710545437853,-455.38199858,0.0001442,2]
[319081003,1710545437862,-164.047402,0.00014565,2]
[319081004,1710545437873,-180.70308,0.00014565,2]
[319081005,1710545437883,-114588.6858,0.000149,2]
[319081006,1710545437892,-322.3043,0.000149,2]
[319081007,1710545437901,-464.77670423,0.000149,2]
[319081008,1710545437911,-464.77670418,0.00014949,2]
[319081009,1710545437920,-155.02,0.0001499,3]
[319081010,1710545437930,-775.14,0.0001499,3]
[319081011,1710545437939,-464.77670418,0.00014998,2]
[319081012,1710545437949,-330.25285699,0.00014998,2]
[319081027,1710545438377,-3057.59215442,0.00014998,2]
[319081028,1710545438386,-303.42135991,0.00014999,5]
[319081029,1710545438396,-525.09116422,0.00015,2]
[319081030,1710545438485,-15030.91197268,0.00015,2]
[319081031,1710545438497,-89630.27123043,0.00015,2]
[319081032,1710545438523,-1689.59804449,0.00015,2]
[319081033,1710545439538,-69065.16297846,0.00015,2]
[319081034,1710545439602,-1408.33607207,0.00015,2]
[319081035,1710545439674,-23943.83246163,0.00015,2]
[319081036,1710545439684,-1550.0,0.00015,4]
[319081037,1710545439693,-3513.02295364,0.00015,2]
[319081038,1710545439789,-506.87153115,0.00015,2]
[319081039,1710545439800,-788.0544215,0.00015,2]
[319081040,1710545439848,-835.95418073,0.00015,2]
[319081041,1710545439860,-323.22,0.00015,2]
[319081042,1710545439872,-2766.61,0.00015,2]
[319081080,1710545442689,-358.77936955,0.000149,2]
[319081081,1710545442701,-1419.26793045,0.000149,2]
[319081082,1710545442710,-46.62097085,0.00015,2]
[319081083,1710545442827,-5501.78891517,0.00015,2]
[319081084,1710545442840,-818.30225175,0.00015,2]
[319081085,1710545442852,-271.12074145,0.00015,2]
[319081086,1710545442862,-1001.41090374,0.00015,2]
[319081088,1710545442871,-2223.30038393,0.00015,2]
[319081090,1710545442883,-776.69961607,0.00015,2]
[319081091,1710545442893,-155.0,0.00015046,2]
[319081092,1710545442902,-464.77670418,0.00015047,2]
[319081093,1710545442911,-152.664976,0.00015051,2]
[319081094,1710545442920,-160.37556581,0.00015052,2]
[319081095,1710545442929,-351.273995,0.00015068,2]
[319081096,1710545442939,-856.0,0.00015069,2]
[319081097,1710545442948,-800.0,0.00015077,2]
[319081098,1710545442957,-200.0,0.00015077,2]
[319081099,1710545442967,-200.0,0.00015084,2]
[319081100,1710545442977,-200.0,0.0001509,2]
[319081101,1710545442986,-200.0,0.00015094,2]
[319081102,1710545442996,-800.0,0.00015094,2]
[319081103,1710545443007,-500.0,0.00015094,2]
[319081104,1710545443016,-464.77670418,0.00015095,2]
[319081105,1710545443028,-200.0,0.00015096,2]
[319081106,1710545443037,-200.0,0.00015102,2]
[319081107,1710545443047,-200.0,0.00015102,2]
[319081108,1710545443057,-200.0,0.00015108,2]
[319081109,1710545443067,-200.0,0.0001511,2]
[319081110,1710545443076,-800.0,0.0001511,2]
[319081111,1710545443085,-500.0,0.0001511,2]
[319081112,1710545443095,-165.848197,0.00015112,2]
[319081113,1710545443104,-200.0,0.00015114,2]
[319081114,1710545443114,-200.0,0.00015114,2]
[319081115,1710545443123,-200.0,0.00015121,2]
[319081116,1710545443132,-200.0,0.00015127,2]
[319081117,1710545443142,-740.33359,0.00015127,2]
[319081132,1710545446610,-59.66641,0.00015127,2]
[319081134,1710545446620,-200.0,0.00015127,2]
[319081136,1710545446629,-500.0,0.00015127,2]
[319081139,1710545446639,-200.0,0.00015127,2]
[319081141,1710545446649,-362.69,0.00015132,2]
[319081143,1710545446658,-1510.42233521,0.00015138,2]
[319081145,1710545446668,-200.0,0.00015138,2]
[319081147,1710545446678,-464.77670418,0.00015144,2]
[319081149,1710545446687,-200.0,0.0001515,2]
[319081151,1710545446697,-200.0,0.00015157,2]
[319081153,1710545446706,-800.0,0.00015157,2]
[319081154,1710545446715,-27.71196303,0.00015157,2]
[319081155,1710545446728,-472.28803697,0.00015157,2]
[319081156,1710545446738,-200.0,0.00015161,2]
[319081157,1710545446747,-200.0,0.00015173,2]
[319081158,1710545446756,-200.0,0.00015173,2]
[319081159,1710545446765,-200.0,0.00015184,2]
[319081160,1710545446774,-200.0,0.00015188,2]
[319081161,1710545446784,-800.0,0.00015188,2]
[319081162,1710545446793,-500.0,0.00015188,2]
[319081163,1710545446802,-464.77670418,0.00015193,2]
[319081164,1710545446812,-1081.459383,0.00015195,2]
[319081165,1710545446821,-975.95871802,0.00015195,2]
[319081167,1710545548053,367.62,0.00012307,2]
[319081168,1710545642385,-248.31,0.00014135,2]
[319081169,1710545645966,170.08397805,0.00014134,2]
[319081170,1710545654801,78.22602195,0.00014128,2]
[319081171,1710545654824,248.31,0.00014128,2]
[319081172,1710545654847,248.31,0.00014128,2]
[319081173,1710545667579,-207.53397805,0.00014128,2]
[319081174,1710545751902,40.77602195,0.00014105,2]
[319081175,1710545926758,-500.0,0.00014104,2]
[319081176,1710545926782,-1164.03397805,0.00014105,2]
[319081177,1710545927227,-500.0,0.00014105,2]
[319081182,1710546017037,349.23,0.00012197,2]
[319081183,1710546092874,814.80397805,0.00014088,2]
[319081184,1710546092898,1185.19602195,0.00014088,2]
[319081185,1710546125211,374.09,0.00014099,2]
[319081186,1710546146155,104.7479561,0.00014091,2]
[319081187,1710546196213,248.31,0.00013699,2]
[319081188,1710546211956,248.31,0.00013569,2]
[319081189,1710546211979,248.31,0.00013569,2]
[319081190,1710546212001,248.31,0.00013569,2]
[319081191,1710546212024,248.31,0.00013569,2]
[319081194,1710546546523,331.76,0.00012058,2]
[319081216,1710546631622,-500.0,0.00013551,2]
[319081217,1710546631633,-155.0,0.00013552,2]
[319081218,1710546631642,-142.96,0.00013569,2]
[319081219,1710546631654,-250.0,0.00013939,2]
[319081220,1710546631666,-1121.45044328,0.00013939,2]
[319081221,1710546631829,-936.66955672,0.00013939,2]
[319081222,1710546631838,-2000.0,0.00013976,2]
[319081223,1710546631847,-700.72,0.00013977,2]
[319081224,1710546631856,-250.0,0.00014027,2]
[319081225,1710546631866,-192.0,0.00014027,2]
[319081226,1710546631877,-192.66,0.00014115,2]
[319081227,1710546631886,-499.99,0.00014164,2]
[319081228,1710546631896,-150.0,0.00014164,2]
[319081229,1710546631905,-158.56254345,0.00014194,2]
[319081230,1710546631919,-161.47,0.00014235,2]
[319081231,1710546631929,-3411.41439343,0.00014294,2]
[319081233,1710546631938,-331.76,0.00014322,2]
[319081235,1710546631948,-1062.30322114,0.00014891,2]
[319081237,1710546631957,-1550.0,0.00015,4]
[319081239,1710546631966,-27031.4143863,0.00015,2]
[319081244,1710546631997,-10468.8,0.00015,2]
[319081246,1710546632008,-5542.91785207,0.00015,2]
[319081250,1710546632035,-382.897602,0.00014795,2]
[319081252,1710546632048,-319.092798,0.00015,2]
[319081254,1710546632063,-2300.0,0.00015,2]
[319081270,1710546637703,-782.55058005,0.0001355,2]
[319081272,1710546637712,-68964.44941992,0.00015,2]
[319081276,1710546637815,-6749.63970466,0.00015,2]
[319081277,1710546637954,-97169.42830877,0.00015,2]
[319081278,1710546638014,-3486.0,0.00015,2]
[319081279,1710546638075,-3492.9219,0.00015,2]
[319081280,1710546638087,-1673.0,0.00015,2]
[319081287,1710546639814,-334.5744,0.00015,2]
[319081288,1710546640010,-420.365052,0.00015,2]
[319081289,1710546640021,-1709.55433962,0.00015,2]
[319081290,1710546640033,-749.2995647,0.00015,2]
[319081314,1710546642649,-3140.53383776,0.00015,2]
[319081316,1710546642663,-2008.11345918,0.00015,2]
[319081318,1710546642804,-1177.46593205,0.00015,2]
[319081319,1710546642815,-2213.2105456,0.00015,2]
[319081320,1710546642844,-1171.5816,0.00015,2]
[319081350,1710546646061,-6104.63981138,0.00015,2]
[319081361,1710547019300,314.01,0.00012065,2]